bitfinex/quotes_ETHUSD_20230404
["timestamp","ask_amount","ask_price","bid_price","bid_amount"]
[1680607177008,4.224,1872.1,1871.5,0.04702923]
[1680607177222,4.224,1872.1,1871.1,0.02198064]
[1680607177223,0.006,1872.1,1871.6,0.04702923]
[1680607177536,1.624545,1872.1,1871.6,0.04702923]
[1680607177691,8.28178577,1872.1,1871.6,0.04702923]
[1680607177891,0.5,1872.0,1871.6,0.26072923]
[1680607178119,7.330815,1872.1,1871.6,0.26072923]
[1680607178393,7.330815,1872.1,1871.7,0.04702923]
[1680607178633,6.830815,1872.1,1871.7,0.04702923]
[1680607178994,6.873545,1872.1,1871.4,0.0219771]
[1680607179211,6.873545,1872.1,1871.7,0.04702923]
[1680607179495,0.5,1871.9,1871.4,0.04702923]
[1680607179841,0.5,1871.9,1871.0,0.108]
[1680607179842,5.741,1871.5,1871.0,0.14702923]
[1680607179995,5.743,1871.5,1871.0,0.14702923]
[1680607180196,5.78574,1871.5,1871.0,0.14702923]
[1680607180419,0.5,1871.4,1871.0,0.14702923]
[1680607180622,8.54977218,1871.3,1871.0,0.14702923]
[1680607180801,8.54977218,1871.3,1871.0,0.1]
[1680607180802,5.78375,1871.1,1871.0,0.1]
[1680607181026,8.55177218,1871.1,1871.0,0.1]
[1680607181232,5.78575,1871.1,1871.0,0.1]
[1680607181395,0.002,1871.1,1871.0,0.1]
[1680607181594,0.04275,1871.2,1871.0,0.1]
[1680607182098,0.95297077,1870.9,1870.5,0.1]
[1680607182412,0.04276,1870.9,1870.5,0.14702923]
[1680607183041,5.73376,1870.9,1870.6,0.04702923]
[1680607183241,2.81078218,1870.9,1870.6,0.04702923]
[1680607183447,0.54276,1870.9,1870.5,0.1]
[1680607183644,0.04276,1870.9,1870.5,0.1]
[1680607184217,5.741,1870.8,1870.6,0.04702923]
[1680607184422,0.5,1870.7,1870.5,0.1]
[1680607184659,5.86929,1870.6,1870.5,0.1]
[1680607184809,8.63731218,1870.6,1870.5,0.1]
[1680607185025,5.87129,1870.6,1870.5,0.1]
[1680607185257,9.27444118,1870.6,1870.5,0.1]
[1680607185460,5.78576,1870.6,1870.5,0.1]
[1680607185773,0.04476,1870.6,1870.5,0.1]
[1680607185987,8.54978218,1870.6,1870.5,0.1]
[1680607186123,8.55178218,1870.6,1870.5,0.1]
[1680607186440,8.50902218,1870.6,1870.5,0.1]
[1680607186646,9.3599244,1870.6,1870.5,0.1]
[1680607187148,0.002,1870.6,1870.5,0.14702923]
[1680607187348,5.78576,1870.8,1870.5,0.1]
[1680607187561,5.741,1870.6,1870.5,0.1]
[1680607187724,5.743,1870.6,1870.5,0.1]
[1680607188522,6.04235,1870.6,1870.5,0.1]
[1680607188764,6.47002,1870.6,1870.5,0.1]
[1680607188956,8.80837218,1870.6,1870.5,0.1]
[1680607189136,9.6892094,1870.6,1870.5,0.1]
[1680607189549,9.5181494,1870.6,1870.5,0.1]
[1680607189882,6.66659722,1870.6,1870.5,0.1]
[1680607190736,9.4326194,1870.6,1870.5,0.1]
[1680607191169,9.5181494,1870.6,1870.5,0.1]
[1680607191668,0.5,1870.5,1870.4,0.104]
[1680607191830,10.08712712,1870.5,1870.4,0.104]
[1680607192031,10.26019712,1870.5,1870.4,0.104]
[1680607192227,0.5,1870.4,1870.1,0.004]
[1680607192496,5.78377,1870.1,1870.0,10.108]
[1680607192648,8.55179218,1870.1,1870.0,10.108]
[1680607193037,8.63734218,1870.1,1870.0,10.108]
[1680607193268,9.9206764,1870.1,1870.0,10.108]
[1680607193787,0.004,1870.0,1869.9,0.004]
[1680607193996,8.55380218,1870.0,1869.8,0.14702923]
[1680607194140,9.3624024,1869.9,1869.8,0.14702923]
[1680607194341,0.1,1869.8,1869.4,0.04702923]
[1680607194541,0.1,1869.8,1869.3,0.102]
[1680607194542,8.50702218,1869.6,1869.3,0.1]
[1680607194740,5.741,1869.4,1869.3,0.14702923]
[1680607195053,5.741,1869.4,1869.3,0.1]
[1680607195054,8.50902218,1869.4,1869.3,0.1]
[1680607195370,5.743,1869.4,1869.3,0.1]
[1680607195571,5.741,1869.5,1869.4,1.48378172]
[1680607195768,8.50702218,1869.5,1869.4,1.52681095]
[1680607195975,8.50902218,1869.5,1869.4,1.52681095]
[1680607196286,2.93138783,1870.1,1870.0,39.94944]
[1680607196587,14.49938579,1870.1,1870.0,28.7367312]
[1680607196740,15.69241502,1870.1,1870.0,28.7367312]
[1680607196935,15.16845218,1870.1,1870.0,28.7367312]
[1680607197565,15.16845218,1870.1,1869.9,0.006]
[1680607197566,0.12987846,1870.0,1869.9,0.006]
[1680607197787,11.10671663,1870.0,1869.5,0.04702923]
[1680607198083,11.10671663,1870.0,1869.4,1.47978172]
[1680607198084,8.50702218,1869.6,1869.4,1.47978172]
[1680607198285,6.59170222,1869.5,1869.4,1.53281095]
[1680607198486,5.743,1869.5,1869.4,1.48578172]
[1680607198653,0.002,1869.5,1869.4,1.53281095]
[1680607198854,0.002,1869.9,1869.4,1.86303282]
[1680607199071,0.08555,1870.1,1869.4,1.64906282]
[1680607199275,0.08555,1870.1,1870.0,0.04702923]
[1680607199276,0.04278,1870.1,1870.0,0.04702923]
[1680607199471,2.80880218,1870.1,1870.0,0.04702923]
[1680607199787,8.7879024,1870.1,1870.0,0.04702923]
[1680607199942,8.8326724,1870.1,1870.0,0.04702923]
[1680607200141,8.8326724,1870.1,1869.9,0.04702923]
[1680607200344,8.8326724,1870.1,1869.4,1.69374172]
[1680607200345,8.9182224,1870.1,1869.7,0.04702923]
[1680607200578,5.741,1869.9,1869.7,0.04702923]
[1680607200757,5.78578,1869.9,1869.7,0.04702923]
[1680607201158,0.002,1869.9,1869.7,0.04702923]
[1680607201483,5.741,1870.1,1870.0,0.04702923]
[1680607201688,0.002,1870.1,1870.0,0.04702923]
[1680607201846,0.08554,1870.3,1870.0,0.04702923]
[1680607202043,0.04277,1870.1,1870.0,0.04702923]
[1680607202359,4.64568,1870.6,1870.1,0.04702923]
[1680607202360,0.04277,1870.3,1870.1,0.04702923]
[1680607202672,5.741,1870.2,1870.1,0.04702923]
[1680607202873,5.743,1870.2,1870.1,0.04702923]
[1680607203058,9.08759918,1870.2,1870.1,0.04702923]
[1680607203243,9.21591918,1870.2,1870.1,0.04702923]
[1680607203449,0.002,1870.2,1870.1,1.26091923]
[1680607203715,0.002,1870.7,1870.4,0.04702923]
[1680607203879,1.46875694,1870.9,1870.1,1.0]
[1680607204197,0.002,1871.0,1870.1,1.0]
[1680607204198,0.17103,1871.0,1870.2,0.21387]
[1680607204395,0.04276,1870.9,1870.4,0.04702923]
[1680607204549,5.741,1871.0,1870.1,1.0]
[1680607204747,5.741,1870.8,1870.4,0.04702923]
[1680607204947,8.50902218,1870.8,1870.3,0.21386]
[1680607205147,8.50902218,1870.8,1870.2,0.42775]
[1680607205148,5.743,1870.8,1870.5,0.21384]
[1680607205390,5.743,1870.8,1870.2,0.86151]
[1680607205391,0.002,1870.8,1870.7,0.04702923]
[1680607205567,5.91888608,1871.4,1870.7,0.26084923]
[1680607205780,5.741,1871.2,1871.1,0.04702923]
[1680607205982,5.743,1871.2,1871.1,0.04702923]
[1680607206156,5.78575,1871.2,1871.1,0.04702923]
[1680607206350,5.743,1871.2,1871.1,0.04702923]
[1680607206557,5.743,1871.2,1871.0,0.21378]
[1680607206755,3.35791079,1871.3,1871.2,0.04702923]
[1680607206756,0.09788861,1871.3,1871.2,0.04702923]
[1680607206950,0.96244541,1871.5,1871.2,0.04702923]
[1680607207200,3.89873077,1871.5,1871.3,0.04702923]
[1680607207358,4.38264285,1871.5,1871.3,0.04702923]
[1680607207568,4.55362285,1871.5,1871.3,0.04702923]
[1680607207769,1.48839067,1871.5,1871.3,0.04702923]
[1680607207970,1.08996859,1871.5,1871.3,0.04702923]
[1680607208190,1.13270859,1871.5,1871.3,0.04702923]
[1680607208877,6.87370859,1871.5,1871.3,0.04702923]
[1680607209081,6.87570859,1871.5,1871.3,0.04702923]
[1680607209425,6.87570859,1871.5,1871.2,0.04702923]
[1680607209426,5.741,1871.3,1871.2,0.04702923]
[1680607209570,8.63727218,1871.3,1871.2,0.04702923]
[1680607210117,8.63727218,1871.3,1870.8,0.04702923]
[1680607210421,5.741,1871.1,1870.8,0.04702923]
[1680607210718,0.29929,1871.0,1870.4,0.006]
[1680607210918,5.741,1870.9,1870.6,0.04702923]
[1680607211064,0.12828,1870.8,1870.6,0.04702923]
[1680607211270,8.50702218,1870.7,1870.5,0.04702923]
[1680607211623,0.29935,1870.6,1870.2,0.05302923]
[1680607211922,5.741,1870.5,1870.4,0.04702923]
[1680607212100,5.743,1870.5,1870.4,0.04702923]
[1680607212417,0.002,1870.5,1870.4,0.04702923]
[1680607212720,0.002,1870.6,1870.4,0.04702923]
[1680607213031,2.73150317,1871.2,1870.9,0.04702923]
[1680607213032,0.54475317,1871.2,1870.9,0.04702923]
[1680607213188,2.76602218,1871.1,1870.9,0.04702923]
[1680607213391,8.50702218,1871.0,1870.4,0.006]
[1680607213592,8.54978218,1870.9,1870.4,0.006]
[1680607213792,10.77530218,1870.9,1870.5,0.04702923]
[1680607214303,11.72827295,1870.9,1870.0,0.006]
[1680607214626,11.72827295,1870.9,1870.2,0.04702923]
[1680607214627,5.741,1870.7,1870.2,0.04702923]
[1680607214809,5.741,1870.5,1870.2,0.04702923]
[1680607215042,5.741,1870.3,1870.2,0.04702923]
[1680607215227,9.3597244,1870.3,1870.2,0.04702923]
[1680607215424,0.002,1870.3,1870.2,0.04702923]
[1680607215743,0.002,1870.5,1870.4,0.04702923]
[1680607216049,0.04276,1870.7,1870.3,0.0036201]
[1680607216540,5.741,1870.6,1870.5,0.04702923]
[1680607216842,5.743,1870.6,1870.5,0.04702923]
[1680607217431,5.743,1870.6,1870.3,0.0036201]
[1680607217631,5.743,1870.6,1870.5,0.04702923]
[1680607218144,0.002,1870.6,1870.5,0.04702923]
[1680607218345,5.78576,1870.9,1870.8,0.04702923]
[1680607218650,0.002,1870.9,1870.8,0.04702923]
[1680607218949,5.741,1871.3,1871.0,0.04702923]
[1680607219128,0.04275,1871.2,1871.0,0.04702923]
[1680607219497,0.12825,1871.2,1871.0,0.04702923]
[1680607219697,5.78375,1871.2,1871.0,0.04702923]
[1680607219911,5.78575,1871.2,1871.0,0.04702923]
[1680607220108,6.319575,1871.1,1871.0,0.04702923]
[1680607220312,6.321575,1871.1,1871.0,0.04702923]
[1680607221842,0.002,1871.1,1871.0,0.28279103]
[1680607222010,0.52170983,1871.4,1871.0,0.6633318]
[1680607222212,0.23152318,1871.5,1871.2,0.04702923]
[1680607222417,0.23152318,1871.5,1871.4,0.04702923]
[1680607223755,0.23152318,1871.5,1871.4,0.06900633]
[1680607223756,0.1,1871.5,1871.4,0.06900633]
[1680607224054,0.1,1871.5,1871.4,0.04702923]
[1680607224551,0.14274,1871.5,1871.4,0.04702923]
[1680607224716,0.1,1871.5,1871.4,0.04702923]
[1680607225060,0.1,1871.5,1871.0,0.006]
[1680607225210,0.14274,1871.5,1871.2,0.04702923]
[1680607225411,5.741,1871.4,1871.0,0.05302923]
[1680607225638,6.3151,1871.3,1871.0,0.26079923]
[1680607225864,0.002,1871.3,1871.0,0.71035103]
[1680607226028,0.1,1871.5,1871.1,0.04702923]
[1680607226234,0.1,1871.5,1871.3,0.04702923]
[1680607227153,0.04274,1871.4,1871.3,0.04702923]
[1680607227454,0.1,1871.5,1871.3,0.04702923]
[1680607227639,1.05297077,1871.5,1870.9,0.04702923]
[1680607227840,0.10529708,1871.4,1870.9,0.04702923]
[1680607228056,0.12825,1871.3,1870.9,0.04702923]
[1680607228561,0.29925,1871.3,1870.9,0.04702923]
[1680607228711,0.29925,1871.3,1870.8,0.06901339]
[1680607228917,0.29925,1871.3,1870.8,0.02198416]
[1680607228918,0.38245371,1871.3,1870.8,0.02198416]
[1680607229151,0.21145371,1871.3,1871.2,0.04702923]
[1680607229349,0.12825,1871.3,1871.2,0.04702923]
[1680607229855,0.04275,1871.3,1871.2,0.04702923]
[1680607230063,0.12825,1871.3,1870.8,0.07501339]
[1680607230271,0.715374,1871.3,1870.8,0.06901339]
[1680607230464,0.715374,1871.3,1870.8,0.06674981]
[1680607230767,0.008,1871.4,1871.2,0.04702923]
[1680607230970,0.18549,1871.5,1871.2,0.04702923]
[1680607231153,0.14274,1871.5,1871.2,0.04702923]
[1680607231354,0.1,1871.5,1871.2,0.04702923]
[1680607231756,0.1,1871.5,1871.2,0.21376]
[1680607231965,0.1,1871.5,1871.1,0.21376]
[1680607232139,0.1,1871.5,1871.0,0.01983163]
[1680607232347,0.14274,1871.5,1871.2,0.04702923]
[1680607232652,0.23049357,1871.5,1871.2,0.40976647]
[1680607233432,0.12825,1871.3,1871.2,0.40976647]
[1680607233632,0.12825,1871.3,1871.2,0.04702923]
[1680607234074,0.04275,1871.3,1871.2,0.04702923]
[1680607234270,5.79400357,1871.4,1871.2,0.04702923]
[1680607234467,6.44482866,1871.4,1871.2,0.04702923]
[1680607235136,6.53031866,1871.4,1871.2,0.04702923]
[1680607235650,6.69397077,1871.2,1870.5,0.002]
[1680607235979,6.69397077,1871.2,1870.3,0.05064933]
[1680607235980,0.29935,1870.7,1870.3,0.0036201]
[1680607236134,0.12829,1870.5,1870.3,0.0036201]
[1680607236334,0.13429,1870.5,1870.3,0.0036201]
[1680607236561,0.13057357,1870.4,1870.3,0.0036201]
[1680607236750,0.72936357,1870.4,1870.3,0.0036201]
[1680607236948,6.47636357,1870.4,1870.3,0.0036201]
[1680607237278,0.7351,1870.4,1870.3,0.05064933]
[1680607237590,0.04277,1870.4,1870.3,0.05064933]
[1680607237797,0.04877,1870.5,1870.3,0.05064933]
[1680607238089,0.006,1870.6,1870.3,0.0036201]
[1680607238251,0.04476,1870.7,1870.3,0.0036201]
[1680607238252,0.00226357,1870.7,1870.3,0.0036201]
[1680607238452,0.00226357,1870.7,1870.5,0.04702923]
[1680607238678,0.00226357,1870.7,1870.3,0.0036201]
[1680607238954,0.00226357,1870.7,1870.6,0.04702923]
[1680607240065,0.00226357,1870.7,1870.3,0.0036201]
[1680607240577,0.00226357,1870.7,1870.6,0.04702923]
[1680607240958,9.09448811,1870.7,1870.6,0.04702923]
[1680607241154,9.13924811,1870.7,1870.3,0.0036201]
[1680607241572,9.22476811,1870.7,1870.3,0.0036201]
[1680607242121,5.741,1870.5,1870.3,0.0036201]
[1680607242269,6.59970222,1870.5,1870.4,0.68858923]
[1680607242617,0.008,1870.5,1870.4,0.68858923]
[1680607242769,0.006,1870.9,1870.3,0.0036201]
[1680607242972,0.5642486,1871.1,1870.8,0.04702923]
[1680607243517,5.741,1871.0,1870.8,0.04702923]
[1680607243674,8.55777218,1871.0,1870.8,0.04702923]
[1680607243870,6.59677722,1870.9,1870.8,0.04702923]
[1680607244107,9.4990794,1870.9,1870.8,0.04702923]
[1680607244414,10.0977194,1870.9,1870.6,0.04702923]
[1680607244573,6.04033,1870.7,1870.3,0.0036201]
[1680607244920,8.81435218,1870.7,1870.6,0.04702923]
[1680607245649,8.51502218,1870.7,1870.6,0.43114283]
[1680607245856,10.19636111,1870.7,1870.6,0.43114283]
[1680607246002,0.431,1870.6,1870.3,0.0036201]
[1680607246203,0.431,1870.6,1870.0,6.002]
[1680607246204,13.65299295,1870.4,1870.0,3.31345]
[1680607246430,9.23423218,1870.1,1870.0,3.04214168]
[1680607246652,9.23623218,1870.1,1870.0,2.99118215]
[1680607246815,10.04987924,1870.1,1870.0,2.99118215]
[1680607247023,11.76009924,1870.1,1870.0,2.99118215]
[1680607247355,15.39147274,1870.1,1870.0,2.99118215]
[1680607247533,16.7711181,1870.1,1870.0,2.99118215]
[1680607247859,12.59511809,1870.1,1870.0,2.99118215]
[1680607248000,7.42207536,1870.1,1870.0,2.99118215]
[1680607248201,5.78577,1870.1,1870.0,3.03821138]
[1680607248448,5.743,1870.1,1870.0,3.03821138]
[1680607248647,8.50902218,1870.1,1870.0,0.00094446]
[1680607248883,9.08558575,1870.1,1870.0,0.00094446]
[1680607249201,13.23658575,1870.1,1870.0,0.00094446]
[1680607249451,9.12835575,1870.1,1870.0,0.00094446]
[1680607249617,13.26258575,1870.1,1870.0,0.00094446]
[1680607250150,5.74526357,1870.1,1870.0,0.04797369]
[1680607250551,0.002,1870.1,1870.0,0.04797369]
[1680607250759,6.44229,1870.6,1870.0,0.04797369]
[1680607250760,0.002,1870.6,1870.0,0.04797369]
[1680607251054,2.76602218,1870.5,1870.4,0.04702923]
[1680607251360,8.50702218,1870.5,1870.4,0.04702923]
[1680607251588,8.55178218,1870.5,1870.4,0.04702923]
[1680607251738,8.50902218,1870.5,1870.4,0.04702923]
[1680607252083,9.3599244,1870.5,1870.0,0.00094446]
[1680607252295,5.78576,1870.5,1870.4,0.04702923]
[1680607252439,5.743,1870.5,1870.0,1.00094446]
[1680607252643,5.743,1870.5,1870.4,0.04702923]
[1680607254339,6.364336,1870.5,1870.4,0.04702923]
[1680607255158,9.21588818,1870.5,1870.3,0.04702923]
[1680607255486,5.741,1870.3,1870.0,0.00094446]
[1680607255659,5.741,1870.1,1870.0,0.00094446]
[1680607255854,5.743,1870.1,1870.0,0.00094446]
[1680607256383,5.78577,1870.1,1870.0,0.00094446]
[1680607256603,5.743,1870.1,1870.0,0.04797369]
[1680607256804,5.743,1870.1,1870.0,0.00094446]
[1680607256960,0.002,1870.1,1870.0,0.04797369]
[1680607257165,0.04277,1870.2,1870.0,0.04797369]
[1680607257361,6.327931,1870.2,1870.0,0.04797369]
[1680607257609,6.329931,1870.2,1870.0,0.04797369]
[1680607257778,0.002,1870.2,1870.0,0.04797369]
[1680607258103,0.04277,1870.5,1870.4,0.04702923]
[1680607258304,8.63531218,1870.5,1870.4,0.04702923]
[1680607258462,9.5010434,1870.5,1870.4,0.04702923]
[1680607258800,6.64949122,1870.5,1870.4,0.04702923]
[1680607259170,9.4155134,1870.5,1870.0,0.00094446]
[1680607259370,5.78377,1870.3,1870.2,0.04702923]
[1680607259602,5.87357357,1870.3,1870.0,0.00094446]
[1680607259900,5.87357357,1870.3,1870.2,0.04702923]
[1680607260057,6.55508606,1870.3,1870.2,0.04702923]
[1680607260256,6.46954606,1870.3,1870.2,0.04702923]
[1680607260500,6.55508606,1870.3,1870.2,0.04702923]
[1680607260701,9.23556824,1870.3,1870.2,0.04702923]
[1680607261160,9.32110824,1870.3,1870.0,0.00094446]
[1680607261366,5.741,1870.1,1870.0,0.00094446]
[1680607261562,8.63960575,1870.1,1870.0,0.00094446]
[1680607263610,10.77760575,1870.1,1870.0,0.00094446]
[1680607263814,8.63960575,1870.1,1870.0,0.00094446]
[1680607264149,10.77760575,1870.1,1870.0,0.00094446]
[1680607264415,12.00906541,1870.1,1870.0,0.00094446]
[1680607265802,7.10504323,1870.1,1870.0,0.00094446]
[1680607266181,9.87106541,1870.1,1870.0,0.00094446]
[1680607266385,9.87106541,1870.1,1870.0,0.04797369]
[1680607266582,12.00906541,1870.1,1870.0,0.04797369]
[1680607266783,9.87106541,1870.1,1870.0,0.04797369]
[1680607267625,5.87132,1870.1,1870.0,0.04797369]
[1680607267931,5.87132,1870.1,1870.0,0.00094446]
[1680607268104,8.63734218,1870.1,1870.0,0.00094446]
[1680607268495,0.7273,1869.9,1869.7,0.04702923]
[1680607268711,8.70810218,1869.8,1869.7,0.04702923]
[1680607268926,8.71010218,1869.8,1869.6,0.1]
[1680607269225,15.00510218,1869.8,1869.6,0.1]
[1680607269518,0.5,1869.7,1869.6,0.1]
[1680607269724,0.79953,1869.5,1869.2,0.1]
[1680607269909,0.12838,1869.3,1869.2,0.1]
[1680607270082,8.63540218,1869.3,1869.2,0.1]
[1680607270286,0.5,1869.2,1869.0,0.06312923]
[1680607270488,9.23463218,1869.1,1869.0,0.06312923]
[1680607270733,11.37663218,1869.1,1869.0,0.06312923]
[1680607270888,10.3742954,1869.1,1869.0,0.06312923]
[1680607271089,10.37655897,1869.1,1869.0,0.06312923]
[1680607271384,10.37655897,1869.1,1869.0,0.01212923]
[1680607273438,12.51655897,1869.1,1869.0,0.01212923]
[1680607273789,0.00426357,1869.1,1869.0,1.01212923]
[1680607273991,5.743,1869.2,1869.0,0.01812923]
[1680607274307,0.002,1869.2,1869.0,0.65416923]
[1680607274520,0.66649974,1869.8,1869.1,0.08526872]
[1680607274721,0.12835,1869.8,1869.1,0.67808226]
[1680607274899,0.04278,1869.8,1869.5,1.0]
[1680607275098,6.24326357,1870.0,1869.3,1.006]
[1680607275299,5.78378,1869.8,1869.5,1.0]
[1680607275503,5.743,1869.8,1869.5,1.0]
[1680607276100,5.743,1869.8,1869.7,1.0]
[1680607276665,5.743,1869.8,1869.6,0.006]
[1680607276666,5.78578,1869.8,1869.6,0.006]
[1680607276940,5.743,1869.8,1869.3,0.21398]
[1680607277246,5.743,1869.8,1869.2,1.006]
[1680607277247,6.36458436,1869.8,1869.2,1.23983073]
[1680607277408,6.32180436,1869.8,1869.2,1.23983073]
[1680607277607,0.002,1869.8,1869.5,1.0]
[1680607277919,0.00226357,1869.9,1869.3,1.43396]
[1680607278124,0.00226357,1869.9,1869.3,0.006]
[1680607278346,0.00226357,1869.9,1869.1,3.58880354]
[1680607278347,5.741,1869.7,1869.2,0.006]
[1680607278496,5.741,1869.7,1869.1,0.59281354]
[1680607278497,5.741,1869.5,1869.1,0.59281354]
[1680607278699,5.741,1869.3,1869.1,0.59281354]
[1680607278903,0.12838,1869.2,1869.1,0.59281354]
[1680607279130,8.63540218,1869.2,1869.1,0.59281354]
[1680607279347,8.63740218,1869.2,1869.1,0.59281354]
[1680607279642,5.78579,1869.2,1869.0,0.01212923]
[1680607279805,5.743,1869.2,1869.0,0.01212923]
[1680607280214,0.04479,1869.2,1869.0,0.01212923]
[1680607280448,5.78805357,1869.3,1869.0,0.01212923]
[1680607280613,6.38615893,1869.3,1869.1,0.57115211]
[1680607281245,0.68794893,1869.3,1869.1,0.57115211]
[1680607281422,0.04279,1869.3,1869.1,0.57115211]
[1680607281617,0.04479,1869.4,1869.1,0.57115211]
[1680607281828,12.35736,1869.8,1869.1,2.21316211]
[1680607281829,0.04478,1869.8,1869.1,2.21316211]
[1680607282133,0.04278,1869.8,1869.2,0.01985073]
[1680607282332,0.04278,1869.8,1869.3,1.0]
[1680607282529,0.04278,1869.8,1869.2,0.02585073]
[1680607282530,0.12835,1869.8,1869.2,0.02585073]
[1680607282744,8.55212,1870.1,1869.3,1.0]
[1680607282745,0.12834,1869.9,1869.3,1.0]
[1680607282919,0.04278,1869.8,1869.3,1.0]
[1680607283320,5.741,1869.6,1869.2,0.02585073]
[1680607283558,5.741,1869.6,1869.2,0.01985073]
[1680607283559,0.04705357,1869.6,1869.2,0.01985073]
[1680607283725,5.741,1869.4,1869.2,0.01985073]
[1680607283925,5.741,1869.4,1869.1,0.57115211]
[1680607283926,5.78579,1869.4,1869.1,0.57115211]
[1680607284455,5.741,1869.3,1869.1,0.57115211]
[1680607284660,5.78579,1869.3,1869.1,0.57115211]
[1680607285021,5.87138,1869.3,1869.1,0.57115211]
[1680607285245,6.458518,1869.3,1869.1,0.57115211]
[1680607285653,6.330138,1869.3,1869.2,0.21399]
[1680607285824,0.002,1869.3,1869.2,1.28397]
[1680607286024,0.002,1869.4,1869.3,1.0]
[1680607286226,0.04278,1869.8,1869.2,0.64398]
[1680607286426,0.04278,1869.8,1869.3,0.08424767]
[1680607286640,2.76602218,1870.0,1869.3,0.23381967]
[1680607286868,5.86934,1869.9,1869.3,0.01984967]
[1680607287085,5.87134,1869.9,1869.3,0.01984967]
[1680607287286,6.73530258,1869.9,1869.3,0.01984967]
[1680607288387,5.741,1869.7,1869.3,0.01984967]
[1680607288689,0.04279,1869.6,1869.3,0.01984967]
[1680607288988,5.743,1869.7,1869.3,1.01984967]
[1680607289150,5.743,1869.7,1869.3,0.01984967]
[1680607289348,0.002,1869.7,1869.3,0.01984967]
[1680607289688,0.29953,1869.6,1869.4,0.52070035]
[1680607289893,8.50702218,1869.5,1869.4,0.52070035]
[1680607290063,8.50902218,1869.5,1869.4,0.52070035]
[1680607290262,8.63739218,1869.5,1869.4,0.52070035]
[1680607290479,9.51847376,1869.5,1869.4,0.52070035]
[1680607290689,9.51847376,1869.5,1868.9,0.06212923]
[1680607290690,9.52447376,1869.5,1868.9,0.06212923]
[1680607290866,5.741,1869.3,1868.9,0.06212923]
[1680607291056,5.741,1869.1,1868.9,0.06212923]
[1680607291254,8.50702218,1869.0,1868.9,0.06212923]
[1680607291461,8.55782218,1869.0,1868.9,0.06212923]
[1680607291653,5.749,1869.0,1868.9,0.06212923]
[1680607291991,5.7918,1869.0,1868.9,0.06212923]
[1680607292488,0.30761,1869.0,1868.9,0.06212923]
[1680607292689,6.645471,1869.0,1868.9,0.06212923]
[1680607292992,6.653471,1869.0,1868.9,0.06212923]
[1680607293176,9.41949318,1869.0,1868.9,0.06212923]
[1680607294318,0.1364,1869.0,1868.9,0.06212923]
[1680607294524,5.8754,1869.0,1868.9,0.06212923]
[1680607294719,5.8774,1869.0,1868.9,0.06212923]
[1680607295235,8.64342218,1869.0,1868.9,0.06212923]
[1680607296790,5.8774,1869.0,1868.9,0.06212923]
[1680607296982,9.24828318,1869.0,1868.9,0.06212923]
[1680607297197,6.741,1868.9,1868.8,0.1]
[1680607297400,0.5,1868.8,1868.7,0.1]
[1680607297728,10.2091024,1868.8,1868.7,0.1]
[1680607297920,10.2111024,1868.8,1868.7,0.1]
[1680607298219,6.46885,1868.5,1868.4,0.427919]
[1680607298400,9.23687218,1868.5,1868.4,0.427919]
[1680607298580,10.1605594,1868.5,1868.4,0.427919]
[1680607298981,0.62844,1868.4,1868.2,0.1]
[1680607299183,9.13546218,1868.4,1868.2,0.1]
[1680607299412,0.5,1868.3,1868.1,0.1]
[1680607299619,10.23497218,1868.2,1868.1,0.1]
[1680607299925,9.57842437,1868.2,1868.1,0.1]
[1680607300128,8.80876218,1868.2,1868.1,0.1]
[1680607300732,8.81102575,1868.2,1868.1,0.1]
[1680607300930,9.78348295,1868.2,1868.1,0.1]
[1680607302193,0.29978,1867.9,1867.8,0.1]
[1680607302396,10.81706575,1867.9,1867.8,0.1]
[1680607302627,13.69082733,1867.9,1867.8,0.1]
[1680607302785,6.741,1867.8,1867.7,0.1]
[1680607302988,10.63351218,1867.8,1867.7,0.1]
[1680607303814,11.16256221,1867.8,1867.7,0.1]
[1680607304014,13.30456221,1867.8,1867.7,0.09351284]
[1680607304331,14.81213236,1867.8,1867.7,0.09351284]
[1680607305002,14.81213236,1867.8,1867.2,0.09351284]
[1680607305191,5.741,1867.6,1867.2,0.09351284]
[1680607305534,8.50702218,1867.3,1867.2,0.09351284]
[1680607305745,8.55186218,1867.3,1867.2,0.09351284]
[1680607306490,8.50902218,1867.3,1867.2,0.09351284]
[1680607306682,0.002,1867.3,1867.2,0.09351284]
[1680607306889,5.743,1867.4,1867.2,0.09351284]
[1680607307116,8.50702218,1867.3,1867.2,0.09351284]
[1680607307390,5.743,1867.3,1867.2,0.09351284]
[1680607308146,0.002,1867.3,1867.2,0.09351284]
[1680607308290,0.04283,1867.6,1867.2,0.09351284]
[1680607308492,5.741,1867.5,1867.2,0.09351284]
[1680607308732,5.743,1867.5,1867.2,0.57607566]
[1680607309534,8.50928575,1867.4,1867.3,0.64263]
[1680607309743,0.002,1867.4,1867.2,0.58207566]
[1680607309941,5.747,1867.7,1867.2,0.58207566]
[1680607309942,5.743,1867.7,1867.2,0.57607566]
[1680607310097,5.743,1867.7,1867.2,1.57607566]
[1680607310098,5.78583,1867.7,1867.2,1.57607566]
[1680607310304,5.78583,1867.7,1867.2,1.74028323]
[1680607310520,8.50702218,1867.6,1867.2,0.60194765]
[1680607310722,8.50702218,1867.6,1867.2,0.58207566]
[1680607310723,0.04283,1867.5,1867.2,0.58207566]
[1680607311041,5.743,1867.6,1867.2,0.58207566]
[1680607311241,5.78583,1867.6,1867.2,0.57607566]
[1680607311732,0.002,1867.6,1867.2,0.63627053]
[1680607312042,0.04283,1867.7,1867.2,2.63927053]
[1680607312337,5.83092357,1867.8,1867.3,1.0]
[1680607312338,5.743,1867.8,1867.3,1.0]
[1680607312517,0.002,1867.8,1867.4,3.01786986]
[1680607312717,0.04282,1868.2,1867.5,0.44418]
[1680607313030,5.741,1868.2,1867.6,1.998]
[1680607313186,5.78582,1868.2,1867.7,0.24986667]
[1680607313596,5.87146,1868.2,1867.7,0.24986667]
[1680607313836,0.04482,1868.2,1867.7,0.24986667]
[1680607314137,5.741,1867.6,1867.5,0.002]